[Event "Titled Tuesday Blitz February 15 Late 2022"]
[White "Svane, Rasmus"]
[Black "Mirzoev, Azer"]
[WhiteFideId "4657101"]
[BlackFideId "13400304"]
[WhiteElo "2645"]
[BlackElo "2525"]
[Result "0-1"]
[Round "11"]
[TimeControl "180+1"]
[Date "2022.02.15"]
[WhiteClock "0:00:01"]
[BlackClock "0:00:06"]

1. Nf3 {[%clk 0:03:00]}  d5 {[%clk 0:02:59]} 2. g3 {[%clk 0:03:01]}  Nf6 {[%clk 0:02:59]} 3. Bg2 {[%clk 0:03:01]}  Bg4 {[%clk 0:02:58]} 4. O-O {[%clk 0:03:01]}  c6 {[%clk 0:02:58]} 5. h3 {[%clk 0:03:01]}  Bh5 {[%clk 0:02:58]} 6. d4 {[%clk 0:03:01]}  e6 {[%clk 0:02:56]} 7. c4 {[%clk 0:03:01]}  Nbd7 {[%clk 0:02:48]} 8. cxd5 {[%clk 0:03:02]}  cxd5 {[%clk 0:02:47]} 9. Qb3 {[%clk 0:03:01]}  Qb6 {[%clk 0:02:47]} 10. Nc3 {[%clk 0:03:01]}  Be7 {[%clk 0:02:46]} 11. Ne5 {[%clk 0:02:59]}  Nxe5 {[%clk 0:02:42]} 12. dxe5 {[%clk 0:02:57]}  Nd7 {[%clk 0:02:42]} 13. Qxb6 {[%clk 0:02:55]}  Nxb6 {[%clk 0:02:32]} 14. g4 {[%clk 0:02:52]}  Bg6 {[%clk 0:02:32]} 15. f4 {[%clk 0:02:52]}  Bc2 {[%clk 0:02:19]} 16. Be3 {[%clk 0:02:35]}  Nc4 {[%clk 0:02:09]} 17. Bd4 {[%clk 0:02:35]}  h5 {[%clk 0:01:48]} 18. Rac1 {[%clk 0:02:28]}  Bh7 {[%clk 0:01:43]} 19. b3 {[%clk 0:02:27]}  Na3 {[%clk 0:01:34]} 20. Kf2 {[%clk 0:02:11]}  a6 {[%clk 0:01:32]} 21. Na4 {[%clk 0:02:03]}  Nc2 {[%clk 0:01:19]} 22. Bc5 {[%clk 0:02:01]}  Rc8 {[%clk 0:00:54]} 23. b4 {[%clk 0:01:38]}  b5 {[%clk 0:00:36]} 24. Nb2 {[%clk 0:01:30]}  Bxc5+ {[%clk 0:00:34]} 25. bxc5 {[%clk 0:01:31]}  Rxc5 {[%clk 0:00:34]} 26. f5 {[%clk 0:01:29]}  Ke7 {[%clk 0:00:23]} 27. Nd3 {[%clk 0:01:28]}  Rc4 {[%clk 0:00:23]} 28. Bf3 {[%clk 0:01:15]}  Rhc8 {[%clk 0:00:22]} 29. Rg1 {[%clk 0:01:14]}  Nd4 {[%clk 0:00:20]} 30. Ra1 {[%clk 0:00:54]}  Nxf3 {[%clk 0:00:20]} 31. Kxf3 {[%clk 0:00:49]}  hxg4+ {[%clk 0:00:19]} 32. hxg4 {[%clk 0:00:49]}  exf5 {[%clk 0:00:20]} 33. gxf5 {[%clk 0:00:50]}  Bxf5 {[%clk 0:00:20]} 34. Rxg7 {[%clk 0:00:32]}  Rd4 {[%clk 0:00:19]} 35. Ke3 {[%clk 0:00:19]}  Re4+ {[%clk 0:00:19]} 36. Kd2 {[%clk 0:00:20]}  Rec4 {[%clk 0:00:17]} 37. Rf1 {[%clk 0:00:17]}  Rc2+ {[%clk 0:00:16]} 38. Ke3 {[%clk 0:00:17]}  Be6 {[%clk 0:00:15]} 39. Rf6 {[%clk 0:00:15]}  R8c3 {[%clk 0:00:12]} 40. Rh6 {[%clk 0:00:07]}  Rxa2 {[%clk 0:00:11]} 41. Rh8 {[%clk 0:00:07]}  d4+ {[%clk 0:00:11]} 42. Kxd4 {[%clk 0:00:07]}  Rc4+ {[%clk 0:00:11]} 43. Ke3 {[%clk 0:00:07]}  Rc3 {[%clk 0:00:10]} 44. Rgg8 {[%clk 0:00:07]}  Rcc2 {[%clk 0:00:09]} 45. Rd8 {[%clk 0:00:06]}  Bd7 {[%clk 0:00:09]} 46. Nf4 {[%clk 0:00:05]}  Rc3+ {[%clk 0:00:09]} 47. Kf2 {[%clk 0:00:05]}  Rc5 {[%clk 0:00:08]} 48. e6 {[%clk 0:00:04]}  fxe6 {[%clk 0:00:08]} 49. Ng6+ {[%clk 0:00:05]}  Kf6 {[%clk 0:00:08]} 50. Nf4 {[%clk 0:00:03]}  Rf5 {[%clk 0:00:08]} 51. Ke3 {[%clk 0:00:03]}  Ra3+ {[%clk 0:00:08]} 52. Nd3 {[%clk 0:00:03]}  Bc6 {[%clk 0:00:08]} 53. Rh6+ {[%clk 0:00:04]}  Ke7 {[%clk 0:00:08]} 54. Rc8 {[%clk 0:00:03]}  Bd5 {[%clk 0:00:08]} 55. Rc7+ {[%clk 0:00:04]}  Kd6 {[%clk 0:00:08]} 56. Ra7 {[%clk 0:00:04]}  Bc4 {[%clk 0:00:08]} 57. Kd2 {[%clk 0:00:03]}  Bxd3 {[%clk 0:00:08]} 58. exd3 {[%clk 0:00:04]}  Rd5 {[%clk 0:00:09]} 59. Kc2 {[%clk 0:00:05]}  Rdxd3 {[%clk 0:00:09]} 60. Rg7 {[%clk 0:00:03]}  Rac3+ {[%clk 0:00:09]} 61. Kb2 {[%clk 0:00:04]}  Rc6 {[%clk 0:00:09]} 62. Rgg6 {[%clk 0:00:04]}  Re3 {[%clk 0:00:09]} 63. Rg2 {[%clk 0:00:03]}  b4 {[%clk 0:00:09]} 64. Rd2+ {[%clk 0:00:03]}  Kc5 {[%clk 0:00:09]} 65. Rh5+ {[%clk 0:00:04]}  Kb6 {[%clk 0:00:09]} 66. Rd8 {[%clk 0:00:04]}  a5 {[%clk 0:00:09]} 67. Rb8+ {[%clk 0:00:05]}  Kc7 {[%clk 0:00:09]} 68. Ra8 {[%clk 0:00:05]}  Re2+ {[%clk 0:00:09]} 69. Kb1 {[%clk 0:00:05]}  Rd6 {[%clk 0:00:08]} 70. Rc5+ {[%clk 0:00:04]}  Kb6 {[%clk 0:00:09]} 71. Rc1 {[%clk 0:00:04]}  Rd5 {[%clk 0:00:08]} 72. Rb8+ {[%clk 0:00:04]}  Ka6 {[%clk 0:00:09]} 73. Ra8+ {[%clk 0:00:04]}  Kb5 {[%clk 0:00:09]} 74. Ka1 {[%clk 0:00:03]}  e5 {[%clk 0:00:08]} 75. Rac8 {[%clk 0:00:01]}  e4 {[%clk 0:00:08]} 76. Rb8+ {[%clk 0:00:01]}  Ka4 {[%clk 0:00:08]} 77. Rb1 {[%clk 0:00:02]}  e3 {[%clk 0:00:08]} 78. Ra8 {[%clk 0:00:02]}  Red2 {[%clk 0:00:07]} 79. Rc1 {[%clk 0:00:02]}  Rd1 {[%clk 0:00:07]} 80. Kb1 {[%clk 0:00:02]}  Rxc1+ {[%clk 0:00:07]} 81. Kxc1 {[%clk 0:00:03]}  e2 {[%clk 0:00:08]} 82. Kc2 {[%clk 0:00:03]}  Rc5+ {[%clk 0:00:08]} 83. Kd3 {[%clk 0:00:03]}  e1=Q {[%clk 0:00:07]} 84. Rd8 {[%clk 0:00:01]}  Qd1+ {[%clk 0:00:06]} 0-1


[Site "https://www.chess.com"]

[Event "Titled Tuesday Blitz February 15 Late 2022"]
[White "Van den Dikkenberg, Erik"]
[Black "Urbina Quiroz, Edwin"]
[WhiteFideId "1005880"]
[BlackFideId "6500650"]
[WhiteElo "2118"]
[BlackElo "2130"]
[Result "1-0"]
[Round "11"]
[TimeControl "180+1"]
[Date "2022.02.16"]
[WhiteClock "0:00:37"]
[BlackClock "0:00:02"]

1. e4 {[%clk 0:03:00]}  e5 {[%clk 0:02:54]} 2. Nf3 {[%clk 0:03:00]}  Nc6 {[%clk 0:02:54]} 3. d4 {[%clk 0:03:01]}  exd4 {[%clk 0:02:55]} 4. Nxd4 {[%clk 0:03:01]}  Bb4+ {[%clk 0:02:56]} 5. c3 {[%clk 0:03:00]}  Bc5 {[%clk 0:02:56]} 6. Nb3 {[%clk 0:02:58]}  Bb6 {[%clk 0:02:55]} 7. Qe2 {[%clk 0:02:58]}  Nf6 {[%clk 0:02:52]} 8. Be3 {[%clk 0:02:57]}  O-O {[%clk 0:02:50]} 9. Bxb6 {[%clk 0:02:57]}  axb6 {[%clk 0:02:51]} 10. g3 {[%clk 0:02:56]}  Nxe4 {[%clk 0:02:50]} 11. Bg2 {[%clk 0:02:50]}  Re8 {[%clk 0:02:48]} 12. Bxe4 {[%clk 0:02:46]}  d5 {[%clk 0:02:42]} 13. N1d2 {[%clk 0:02:44]}  dxe4 {[%clk 0:02:32]} 14. O-O {[%clk 0:02:43]}  Qg5 {[%clk 0:01:33]} 15. Nxe4 {[%clk 0:01:56]}  Qe5 {[%clk 0:01:17]} 16. Rfe1 {[%clk 0:01:56]}  f5 {[%clk 0:00:15]} 17. Nf6+ {[%clk 0:01:29]}  gxf6 {[%clk 0:00:16]} 18. Qh5 {[%clk 0:01:29]}  Qxe1+ {[%clk 0:00:14]} 19. Rxe1 {[%clk 0:01:29]}  Rxe1+ {[%clk 0:00:15]} 20. Kg2 {[%clk 0:01:30]}  Be6 {[%clk 0:00:10]} 21. Qh6 {[%clk 0:01:18]}  Rf8 {[%clk 0:00:05]} 22. Qf4 {[%clk 0:01:15]}  Ne5 {[%clk 0:00:03]} 23. Nd4 {[%clk 0:01:13]}  Bd5+ {[%clk 0:00:03]} 24. Kh3 {[%clk 0:01:10]}  Re4 {[%clk 0:00:02]} 25. Qxf5 {[%clk 0:01:07]}  c5 {[%clk 0:00:02]} 26. Nf3 {[%clk 0:00:50]}  Be6 {[%clk 0:00:02]} 27. Qxe6+ {[%clk 0:00:49]}  Kg7 {[%clk 0:00:02]} 28. Qd5 {[%clk 0:00:37]} 1-0


[Site "https://www.chess.com"]

[Event "Titled Tuesday Blitz February 15 Late 2022"]
[White "Vidit, Santosh Gujrathi"]
[Black "Indjic, Aleksandar"]
[WhiteFideId "5029465"]
[BlackFideId "911925"]
[WhiteElo "2654"]
[BlackElo "2616"]
[Result "0-1"]
[Round "11"]
[TimeControl "180+1"]
[Date "2022.02.15"]
[WhiteClock "0:01:23"]
[BlackClock "0:00:24"]

1. b3 {[%clk 0:03:00]}  d5 {[%clk 0:02:57]} 2. Bb2 {[%clk 0:03:01]}  Nf6 {[%clk 0:02:57]} 3. Nf3 {[%clk 0:03:01]}  Bf5 {[%clk 0:02:57]} 4. d3 {[%clk 0:02:58]}  h6 {[%clk 0:02:57]} 5. Nbd2 {[%clk 0:02:58]}  Bh7 {[%clk 0:02:56]} 6. g3 {[%clk 0:02:58]}  c5 {[%clk 0:02:55]} 7. Bg2 {[%clk 0:02:58]}  e6 {[%clk 0:02:53]} 8. O-O {[%clk 0:02:58]}  Nc6 {[%clk 0:02:53]} 9. Ne5 {[%clk 0:02:57]}  Bd6 {[%clk 0:02:46]} 10. Nxc6 {[%clk 0:02:57]}  bxc6 {[%clk 0:02:47]} 11. e4 {[%clk 0:02:57]}  Be7 {[%clk 0:02:46]} 12. Qe2 {[%clk 0:02:55]}  O-O {[%clk 0:02:44]} 13. Kh1 {[%clk 0:02:54]}  a5 {[%clk 0:02:45]} 14. a4 {[%clk 0:02:53]}  Nd7 {[%clk 0:02:42]} 15. f4 {[%clk 0:02:48]}  Bf6 {[%clk 0:02:42]} 16. e5 {[%clk 0:02:40]}  Be7 {[%clk 0:02:41]} 17. g4 {[%clk 0:02:41]}  Qc7 {[%clk 0:02:20]} 18. f5 {[%clk 0:02:36]}  exf5 {[%clk 0:02:00]} 19. gxf5 {[%clk 0:02:36]}  Rae8 {[%clk 0:01:59]} 20. Bh3 {[%clk 0:02:21]}  Bf6 {[%clk 0:01:55]} 21. Qg2 {[%clk 0:02:05]}  Bxe5 {[%clk 0:01:40]} 22. f6 {[%clk 0:02:01]}  Nxf6 {[%clk 0:01:37]} 23. Bxe5 {[%clk 0:01:39]}  Qxe5 {[%clk 0:01:36]} 24. Nf3 {[%clk 0:01:40]}  Qf4 {[%clk 0:01:11]} 25. Rg1 {[%clk 0:01:39]}  Bg6 {[%clk 0:01:10]} 26. Raf1 {[%clk 0:01:37]}  Re3 {[%clk 0:01:07]} 27. Qd2 {[%clk 0:01:32]}  Rfe8 {[%clk 0:01:00]} 28. Ne1 {[%clk 0:01:27]}  Qh4 {[%clk 0:00:54]} 29. Bg2 {[%clk 0:01:26]}  Re2 {[%clk 0:00:37]} 30. Qxa5 {[%clk 0:01:25]}  Ng4 {[%clk 0:00:29]} 31. Nf3 {[%clk 0:01:24]}  Nf2+ {[%clk 0:00:27]} 32. Rxf2 {[%clk 0:01:25]}  Qxf2 {[%clk 0:00:27]} 33. Qc7 {[%clk 0:01:23]}  Bh5 {[%clk 0:00:24]} 0-1


[Site "https://www.chess.com"]

[Event "Titled Tuesday Blitz February 15 Late 2022"]
[White "Vine, Elzbieta"]
[Black "Antonio, Jorge Carlos"]
[WhiteFideId "1119320"]
[BlackFideId "113190"]
[WhiteElo "1846"]
[BlackElo "2247"]
[Result "1-0"]
[Round "11"]
[TimeControl "180+1"]
[Date "2022.02.16"]
[WhiteClock "0:00:27"]
[BlackClock "0:00:29"]

1. e4 {[%clk 0:03:00]}  e5 {[%clk 0:02:59]} 2. Nf3 {[%clk 0:02:59]}  Nc6 {[%clk 0:02:59]} 3. Bb5 {[%clk 0:02:58]}  a6 {[%clk 0:02:59]} 4. Ba4 {[%clk 0:02:57]}  Nf6 {[%clk 0:02:56]} 5. d4 {[%clk 0:02:54]}  exd4 {[%clk 0:02:53]} 6. e5 {[%clk 0:02:53]}  Ne4 {[%clk 0:02:50]} 7. Nxd4 {[%clk 0:02:50]}  Bc5 {[%clk 0:02:47]} 8. c3 {[%clk 0:02:42]}  Qh4 {[%clk 0:02:42]} 9. O-O {[%clk 0:02:40]}  Nxd4 {[%clk 0:02:38]} 10. cxd4 {[%clk 0:02:39]}  Nxf2 {[%clk 0:02:34]} 11. Rxf2 {[%clk 0:01:55]}  Bxd4 {[%clk 0:02:32]} 12. Nc3 {[%clk 0:01:42]}  Qxf2+ {[%clk 0:02:26]} 13. Kh1 {[%clk 0:01:41]}  O-O {[%clk 0:02:22]} 14. Ne4 {[%clk 0:01:39]}  Qh4 {[%clk 0:01:50]} 15. Qxd4 {[%clk 0:01:37]}  b5 {[%clk 0:01:47]} 16. Bc2 {[%clk 0:01:30]}  Qe7 {[%clk 0:01:38]} 17. Nf6+ {[%clk 0:01:17]}  gxf6 {[%clk 0:01:12]} 18. Qh4 {[%clk 0:01:10]}  h5 {[%clk 0:01:03]} 19. Qxh5 {[%clk 0:01:07]}  f5 {[%clk 0:01:03]} 20. Bxf5 {[%clk 0:01:01]}  f6 {[%clk 0:00:57]} 21. Bh6 {[%clk 0:00:53]}  Rf7 {[%clk 0:00:40]} 22. Bg6 {[%clk 0:00:45]}  Qxe5 {[%clk 0:00:34]} 23. Bxf7+ {[%clk 0:00:43]}  Kh8 {[%clk 0:00:31]} 24. Bg5+ {[%clk 0:00:38]}  Kg7 {[%clk 0:00:30]} 25. Qg6+ {[%clk 0:00:31]}  Kf8 {[%clk 0:00:29]} 26. Bxf6 {[%clk 0:00:27]} 1-0


[Site "https://www.chess.com"]

[Event "Titled Tuesday Blitz February 15 Late 2022"]
[White "Yurovskykh, Oleksandr"]
[Black "Aradhya, Garg"]
[WhiteFideId "14134020"]
[BlackFideId "25006746"]
[WhiteElo "2292"]
[BlackElo "2169"]
[Result "0-1"]
[Round "11"]
[TimeControl "180+1"]
[Date "2022.02.15"]
[WhiteClock "0:01:47"]
[BlackClock "0:02:08"]

1. d4 {[%clk 0:03:00]}  d5 {[%clk 0:02:59]} 2. Bf4 {[%clk 0:03:00]}  c5 {[%clk 0:02:58]} 3. e3 {[%clk 0:03:00]}  Nc6 {[%clk 0:02:58]} 4. c3 {[%clk 0:03:00]}  Qb6 {[%clk 0:02:58]} 5. Qb3 {[%clk 0:03:00]}  c4 {[%clk 0:02:59]} 6. Qc2 {[%clk 0:03:00]}  e5 {[%clk 0:02:58]} 7. dxe5 {[%clk 0:02:52]}  Bf5 {[%clk 0:02:58]} 8. Qc1 {[%clk 0:02:49]}  f6 {[%clk 0:02:57]} 9. Nf3 {[%clk 0:02:49]}  Nge7 {[%clk 0:02:53]} 10. exf6 {[%clk 0:02:48]}  gxf6 {[%clk 0:02:54]} 11. Nbd2 {[%clk 0:02:47]}  Ng6 {[%clk 0:02:54]} 12. Bg3 {[%clk 0:02:47]}  Bc5 {[%clk 0:02:53]} 13. Be2 {[%clk 0:02:43]}  h5 {[%clk 0:02:52]} 14. Nh4 {[%clk 0:02:41]}  Nxh4 {[%clk 0:02:48]} 15. Bxh4 {[%clk 0:02:42]}  Ne5 {[%clk 0:02:46]} 16. Nf3 {[%clk 0:02:36]}  Bd3 {[%clk 0:02:35]} 17. Nxe5 {[%clk 0:02:24]}  fxe5 {[%clk 0:02:36]} 18. Qd2 {[%clk 0:02:24]}  e4 {[%clk 0:02:35]} 19. O-O {[%clk 0:02:21]}  Qg6 {[%clk 0:02:33]} 20. Kh1 {[%clk 0:02:02]}  Rg8 {[%clk 0:02:30]} 21. Rg1 {[%clk 0:02:02]}  Qc6 {[%clk 0:02:17]} 22. Bxh5+ {[%clk 0:01:56]}  Kd7 {[%clk 0:02:16]} 23. Bg3 {[%clk 0:01:54]}  Qh6 {[%clk 0:02:16]} 24. Be2 {[%clk 0:01:52]}  Rxg3 {[%clk 0:02:09]} 25. fxg3 {[%clk 0:01:52]}  Qxh2+ {[%clk 0:02:08]} 26. Kxh2 {[%clk 0:01:47]}  Rh8+ {[%clk 0:02:08]} 27. Bh5 {[%clk 0:01:47]}  Rxh5# {[%clk 0:02:08]} 0-1


[Site "https://www.chess.com"]

[Event "Titled Tuesday Blitz February 15 Late 2022"]
[White "Yushko, Olga"]
[Black "Petrova, Irina"]
[WhiteFideId "14114500"]
[BlackFideId "14124122"]
[WhiteElo "2028"]
[BlackElo "1988"]
[Result "0-1"]
[Round "11"]
[TimeControl "180+1"]
[Date "2022.02.16"]
[WhiteClock "0:00:03"]
[BlackClock "0:00:16"]

1. d4 {[%clk 0:02:53]}  d5 {[%clk 0:02:59]} 2. c4 {[%clk 0:02:53]}  c6 {[%clk 0:02:59]} 3. cxd5 {[%clk 0:02:54]}  cxd5 {[%clk 0:02:59]} 4. Nc3 {[%clk 0:02:55]}  Nf6 {[%clk 0:02:59]} 5. Nf3 {[%clk 0:02:56]}  Nc6 {[%clk 0:02:59]} 6. Bf4 {[%clk 0:02:56]}  a6 {[%clk 0:02:59]} 7. e3 {[%clk 0:02:52]}  e6 {[%clk 0:02:59]} 8. Bd3 {[%clk 0:02:53]}  Be7 {[%clk 0:02:58]} 9. O-O {[%clk 0:02:53]}  O-O {[%clk 0:02:58]} 10. Rc1 {[%clk 0:02:53]}  Bd7 {[%clk 0:02:58]} 11. Bb1 {[%clk 0:02:53]}  Rc8 {[%clk 0:02:58]} 12. Qd3 {[%clk 0:02:53]}  b5 {[%clk 0:02:58]} 13. Ne5 {[%clk 0:02:53]}  Nb4 {[%clk 0:02:51]} 14. Qd2 {[%clk 0:02:45]}  Be8 {[%clk 0:02:49]} 15. a3 {[%clk 0:02:44]}  Nc6 {[%clk 0:02:49]} 16. Qd3 {[%clk 0:02:42]}  Bd7 {[%clk 0:02:22]} 17. Bg5 {[%clk 0:02:37]}  g6 {[%clk 0:02:17]} 18. Bh6 {[%clk 0:02:33]}  Re8 {[%clk 0:02:17]} 19. h3 {[%clk 0:02:29]}  Bf8 {[%clk 0:02:14]} 20. Bg5 {[%clk 0:02:28]}  Be7 {[%clk 0:02:07]} 21. Bh6 {[%clk 0:02:27]}  Nxe5 {[%clk 0:02:05]} 22. dxe5 {[%clk 0:02:27]}  Nh5 {[%clk 0:02:05]} 23. e4 {[%clk 0:02:17]}  Bg5 {[%clk 0:02:03]} 24. Bxg5 {[%clk 0:02:13]}  Qxg5 {[%clk 0:02:04]} 25. exd5 {[%clk 0:02:13]}  exd5 {[%clk 0:02:01]} 26. Ne2 {[%clk 0:01:57]}  Rxc1 {[%clk 0:01:58]} 27. Rxc1 {[%clk 0:01:56]}  Qxe5 {[%clk 0:01:53]} 28. Nd4 {[%clk 0:01:46]}  Nf4 {[%clk 0:01:52]} 29. Qf3 {[%clk 0:01:09]}  Qxd4 {[%clk 0:01:48]} 30. Rd1 {[%clk 0:01:09]}  Qe5 {[%clk 0:01:38]} 31. Ba2 {[%clk 0:00:51]}  Be6 {[%clk 0:01:13]} 32. a4 {[%clk 0:00:24]}  bxa4 {[%clk 0:01:03]} 33. Qa3 {[%clk 0:00:11]}  d4 {[%clk 0:00:52]} 34. Qxa4 {[%clk 0:00:10]}  Rb8 {[%clk 0:00:49]} 35. Bb1 {[%clk 0:00:09]}  Qg5 {[%clk 0:00:42]} 36. g3 {[%clk 0:00:09]}  Nxh3+ {[%clk 0:00:41]} 37. Kg2 {[%clk 0:00:09]}  Nf4+ {[%clk 0:00:37]} 38. Kg1 {[%clk 0:00:09]}  Ne2+ {[%clk 0:00:26]} 39. Kg2 {[%clk 0:00:09]}  Bd5+ {[%clk 0:00:25]} 40. f3 {[%clk 0:00:08]}  Nf4+ {[%clk 0:00:24]} 41. Kg1 {[%clk 0:00:08]}  Bxf3 {[%clk 0:00:23]} 42. Kf2 {[%clk 0:00:07]}  Bxd1 {[%clk 0:00:22]} 43. Qxd1 {[%clk 0:00:07]}  Rxb2+ {[%clk 0:00:21]} 44. Kf3 {[%clk 0:00:07]}  Ne6 {[%clk 0:00:18]} 45. Be4 {[%clk 0:00:05]}  Qe3+ {[%clk 0:00:17]} 46. Kg4 {[%clk 0:00:05]}  Qxe4+ {[%clk 0:00:18]} 47. Kh3 {[%clk 0:00:06]}  Qf5+ {[%clk 0:00:17]} 48. g4 {[%clk 0:00:05]}  Ng5+ {[%clk 0:00:17]} 49. Kh4 {[%clk 0:00:05]}  Qf2+ {[%clk 0:00:17]} 50. Kxg5 {[%clk 0:00:05]}  f6+ {[%clk 0:00:16]} 51. Kh6 {[%clk 0:00:03]}  Qh4# {[%clk 0:00:16]} 0-1


[Site "https://www.chess.com"]

[Event "Titled Tuesday Blitz February 15 Late 2022"]
[White "Zierk, Steven"]
[Black "Chigaev, Maksim"]
[WhiteFideId "2034255"]
[BlackFideId "4108116"]
[WhiteElo "2494"]
[BlackElo "2502"]
[Result "1-0"]
[Round "11"]
[TimeControl "180+1"]
[Date "2022.02.15"]
[WhiteClock "0:00:17"]
[BlackClock "0:00:01"]

1. e4 {[%clk 0:03:00]}  c5 {[%clk 0:02:59]} 2. Nf3 {[%clk 0:03:01]}  e6 {[%clk 0:02:59]} 3. d4 {[%clk 0:03:01]}  cxd4 {[%clk 0:03:00]} 4. Nxd4 {[%clk 0:03:02]}  Nc6 {[%clk 0:03:01]} 5. Nc3 {[%clk 0:03:02]}  Qc7 {[%clk 0:03:01]} 6. Be3 {[%clk 0:03:02]}  a6 {[%clk 0:03:02]} 7. Qf3 {[%clk 0:03:02]}  Ne5 {[%clk 0:03:00]} 8. Qg3 {[%clk 0:03:02]}  Bd6 {[%clk 0:03:01]} 9. Qxg7 {[%clk 0:02:44]}  Ng6 {[%clk 0:03:00]} 10. Nf3 {[%clk 0:02:44]}  f6 {[%clk 0:02:55]} 11. e5 {[%clk 0:02:37]}  Bf8 {[%clk 0:02:55]} 12. exf6 {[%clk 0:02:37]}  Bxg7 {[%clk 0:02:55]} 13. fxg7 {[%clk 0:02:38]}  Nf6 {[%clk 0:02:51]} 14. gxh8=Q+ {[%clk 0:02:37]}  Nxh8 {[%clk 0:02:52]} 15. Bd4 {[%clk 0:02:35]}  Ke7 {[%clk 0:02:49]} 16. O-O-O {[%clk 0:02:32]}  Nf7 {[%clk 0:02:50]} 17. Bd3 {[%clk 0:02:25]}  b5 {[%clk 0:02:49]} 18. Rhe1 {[%clk 0:02:19]}  Bb7 {[%clk 0:02:48]} 19. Ne5 {[%clk 0:02:15]}  b4 {[%clk 0:02:13]} 20. Na4 {[%clk 0:02:00]}  Nxe5 {[%clk 0:02:07]} 21. Rxe5 {[%clk 0:01:56]}  Bc6 {[%clk 0:01:54]} 22. Nc5 {[%clk 0:01:49]}  Bd5 {[%clk 0:01:47]} 23. Rde1 {[%clk 0:01:44]}  Kf7 {[%clk 0:01:27]} 24. f4 {[%clk 0:01:36]}  Ng4 {[%clk 0:01:07]} 25. Rxd5 {[%clk 0:01:21]}  exd5 {[%clk 0:01:07]} 26. g3 {[%clk 0:01:12]}  Re8 {[%clk 0:01:05]} 27. Rxe8 {[%clk 0:01:12]}  Kxe8 {[%clk 0:01:06]} 28. Bxh7 {[%clk 0:01:13]}  d6 {[%clk 0:01:01]} 29. Bg6+ {[%clk 0:01:11]}  Ke7 {[%clk 0:01:01]} 30. Nb3 {[%clk 0:01:03]}  Nxh2 {[%clk 0:00:43]} 31. Bd3 {[%clk 0:01:03]}  a5 {[%clk 0:00:43]} 32. Be2 {[%clk 0:01:02]}  a4 {[%clk 0:00:38]} 33. Nd2 {[%clk 0:01:01]}  Qd7 {[%clk 0:00:38]} 34. b3 {[%clk 0:00:47]}  a3 {[%clk 0:00:37]} 35. c3 {[%clk 0:00:46]}  bxc3 {[%clk 0:00:31]} 36. Nb1 {[%clk 0:00:45]}  Qh3 {[%clk 0:00:21]} 37. Nxc3 {[%clk 0:00:42]}  Qxg3 {[%clk 0:00:20]} 38. Nxd5+ {[%clk 0:00:40]}  Ke6 {[%clk 0:00:11]} 39. Bc4 {[%clk 0:00:38]}  Kf5 {[%clk 0:00:03]} 40. Kc2 {[%clk 0:00:30]}  Nf3 {[%clk 0:00:03]} 41. Bc3 {[%clk 0:00:24]}  Qf2+ {[%clk 0:00:03]} 42. Kd3 {[%clk 0:00:24]}  Ne1+ {[%clk 0:00:02]} 43. Bxe1 {[%clk 0:00:23]}  Qxe1 {[%clk 0:00:03]} 44. b4 {[%clk 0:00:21]}  Qe4+ {[%clk 0:00:02]} 45. Kc3 {[%clk 0:00:22]}  Qe1+ {[%clk 0:00:02]} 46. Kb3 {[%clk 0:00:20]}  Qc1 {[%clk 0:00:02]} 47. b5 {[%clk 0:00:19]}  Qb2+ {[%clk 0:00:02]} 48. Ka4 {[%clk 0:00:19]}  Ke4 {[%clk 0:00:02]} 49. b6 {[%clk 0:00:19]}  Kd4 {[%clk 0:00:03]} 50. Bb3 {[%clk 0:00:19]}  Kc5 {[%clk 0:00:02]} 51. b7 {[%clk 0:00:17]}  Qd4+ {[%clk 0:00:02]} 52. Ka5 {[%clk 0:00:17]}  Qd2+ {[%clk 0:00:02]} 53. Ka6 {[%clk 0:00:18]}  Qe2+ {[%clk 0:00:01]} 54. Ka7 {[%clk 0:00:17]} 1-0